[Event "Titled Tuesday Blitz August 24 2021"]
[White "Aggelis, Nikolaos"]
[Black "Svane, Frederik"]
[WhiteFideId "4213220"]
[BlackFideId "12923044"]
[WhiteElo "2527"]
[BlackElo "2774"]
[Result "1/2-1/2"]
[Round "02"]
[TimeControl "180+1"]
[Date "2021.08.24"]
[WhiteClock "0:01:00"]
[BlackClock "0:00:13"]

1. d4 {[%clk 0:02:56]}  Nf6 {[%clk 0:03:00]} 2. g3 {[%clk 0:02:56]}  c5 {[%clk 0:02:50]} 3. Nf3 {[%clk 0:02:55]}  cxd4 {[%clk 0:02:49]} 4. Nxd4 {[%clk 0:02:56]}  Nc6 {[%clk 0:02:50]} 5. Bg2 {[%clk 0:02:55]}  g6 {[%clk 0:02:50]} 6. Nxc6 {[%clk 0:02:55]}  bxc6 {[%clk 0:02:49]} 7. b3 {[%clk 0:02:56]}  Bg7 {[%clk 0:02:49]} 8. Bb2 {[%clk 0:02:57]}  O-O {[%clk 0:02:50]} 9. c4 {[%clk 0:02:57]}  Qc7 {[%clk 0:02:48]} 10. O-O {[%clk 0:02:57]}  d6 {[%clk 0:02:49]} 11. Nc3 {[%clk 0:02:56]}  Rb8 {[%clk 0:02:48]} 12. Rc1 {[%clk 0:02:54]}  Be6 {[%clk 0:02:47]} 13. Qd2 {[%clk 0:02:54]}  Rfd8 {[%clk 0:02:46]} 14. Rfd1 {[%clk 0:02:54]}  h5 {[%clk 0:02:45]} 15. h3 {[%clk 0:02:54]}  Kh7 {[%clk 0:02:44]} 16. Kh2 {[%clk 0:02:53]}  Bh6 {[%clk 0:02:41]} 17. e3 {[%clk 0:02:53]}  h4 {[%clk 0:02:38]} 18. g4 {[%clk 0:02:54]}  d5+ {[%clk 0:02:38]} 19. Kg1 {[%clk 0:02:53]}  d4 {[%clk 0:02:38]} 20. Ne4 {[%clk 0:02:28]}  dxe3 {[%clk 0:02:01]} 21. Nxf6+ {[%clk 0:02:22]}  exf6 {[%clk 0:02:00]} 22. Qc3 {[%clk 0:02:17]}  exf2+ {[%clk 0:01:58]} 23. Kxf2 {[%clk 0:02:18]}  Bxc1 {[%clk 0:01:52]} 24. Rxc1 {[%clk 0:02:15]}  Qf4+ {[%clk 0:01:50]} 25. Kg1 {[%clk 0:02:12]}  c5 {[%clk 0:01:24]} 26. Qxf6 {[%clk 0:02:09]}  Qxf6 {[%clk 0:01:20]} 27. Bxf6 {[%clk 0:02:09]}  Rd2 {[%clk 0:01:21]} 28. Re1 {[%clk 0:01:52]}  Rxa2 {[%clk 0:01:18]} 29. g5 {[%clk 0:01:52]}  Rxb3 {[%clk 0:00:51]} 30. Re4 {[%clk 0:01:52]}  Rxg2+ {[%clk 0:00:49]} 31. Kxg2 {[%clk 0:01:53]}  Rxh3 {[%clk 0:00:48]} 32. Re5 {[%clk 0:01:44]}  Rg3+ {[%clk 0:00:33]} 33. Kh2 {[%clk 0:01:42]}  Rh3+ {[%clk 0:00:32]} 34. Kg2 {[%clk 0:01:41]}  Rg3+ {[%clk 0:00:33]} 35. Kh2 {[%clk 0:01:41]}  Rg4 {[%clk 0:00:30]} 36. Rxc5 {[%clk 0:01:39]}  Rxc4 {[%clk 0:00:27]} 37. Rxc4 {[%clk 0:01:26]}  Bxc4 {[%clk 0:00:27]} 38. Kh3 {[%clk 0:01:27]}  Kg8 {[%clk 0:00:12]} 39. Kxh4 {[%clk 0:01:27]}  Kf8 {[%clk 0:00:13]} 40. Kg3 {[%clk 0:01:27]}  Ke8 {[%clk 0:00:14]} 41. Kf2 {[%clk 0:01:28]}  Kd7 {[%clk 0:00:15]} 42. Ke3 {[%clk 0:01:28]}  Kc6 {[%clk 0:00:15]} 43. Kd4 {[%clk 0:01:26]}  Kb5 {[%clk 0:00:15]} 44. Kc3 {[%clk 0:01:26]}  Be6 {[%clk 0:00:15]} 45. Kb2 {[%clk 0:01:26]}  Kb4 {[%clk 0:00:15]} 46. Ka1 {[%clk 0:01:27]}  Kb3 {[%clk 0:00:15]} 47. Kb1 {[%clk 0:01:22]}  a5 {[%clk 0:00:15]} 48. Ka1 {[%clk 0:01:22]}  a4 {[%clk 0:00:13]} 49. Kb1 {[%clk 0:01:22]}  Bf5+ {[%clk 0:00:13]} 50. Ka1 {[%clk 0:01:23]}  Be4 {[%clk 0:00:12]} 51. Be5 {[%clk 0:01:19]}  Bd5 {[%clk 0:00:08]} 52. Bf6 {[%clk 0:01:19]}  Bc4 {[%clk 0:00:09]} 53. Be5 {[%clk 0:01:18]}  Be6 {[%clk 0:00:09]} 54. Bf6 {[%clk 0:01:18]}  Bd5 {[%clk 0:00:08]} 55. Be5 {[%clk 0:01:17]}  a3 {[%clk 0:00:03]} 56. Bf6 {[%clk 0:01:14]}  Kc2 {[%clk 0:00:04]} 57. Be7 {[%clk 0:01:13]}  a2 {[%clk 0:00:04]} 58. Bf6 {[%clk 0:01:12]}  Kb3 {[%clk 0:00:03]} 59. Be5 {[%clk 0:01:12]}  f5 {[%clk 0:00:03]} 60. gxf6 {[%clk 0:01:12]}  Bf7 {[%clk 0:00:03]} 61. Bf4 {[%clk 0:01:08]}  Kc2 {[%clk 0:00:04]} 62. Bh6 {[%clk 0:01:06]}  Kd3 {[%clk 0:00:04]} 63. Bc1 {[%clk 0:01:03]}  Ke4 {[%clk 0:00:05]} 64. Bd2 {[%clk 0:01:00]}  Kf5 {[%clk 0:00:06]} 65. Bc1 {[%clk 0:01:00]}  Ke6 {[%clk 0:00:06]} 66. Bd2 {[%clk 0:00:59]}  Kf5 {[%clk 0:00:07]} 67. Bc1 {[%clk 0:01:00]}  g5 {[%clk 0:00:08]} 68. Bxg5 {[%clk 0:00:59]}  Kxg5 {[%clk 0:00:09]} 69. Kb2 {[%clk 0:00:59]}  Kxf6 {[%clk 0:00:10]} 70. Ka1 {[%clk 0:00:59]}  Ke5 {[%clk 0:00:11]} 71. Kb2 {[%clk 0:00:59]}  Kd4 {[%clk 0:00:12]} 72. Ka1 {[%clk 0:01:00]}  Kc3 {[%clk 0:00:13]} 1/2-1/2


[Site "https://www.chess.com"]

[Event "Titled Tuesday Blitz August 24 2021"]
[White "Andreikin, Dmitry"]
[Black "Papasimakopoulos, Alexandros"]
[WhiteFideId "4158814"]
[BlackFideId "4244125"]
[WhiteElo "2782"]
[BlackElo "2352"]
[Result "1-0"]
[Round "02"]
[TimeControl "180+1"]
[Date "2021.08.24"]
[WhiteClock "0:00:19"]
[BlackClock "0:00:05"]

1. Nf3 {[%clk 0:03:00]}  f5 {[%clk 0:02:54]} 2. d4 {[%clk 0:02:55]}  Nf6 {[%clk 0:02:54]} 3. Bg5 {[%clk 0:02:55]}  e6 {[%clk 0:02:51]} 4. Nbd2 {[%clk 0:02:55]}  Be7 {[%clk 0:02:50]} 5. Bxf6 {[%clk 0:02:55]}  Bxf6 {[%clk 0:02:50]} 6. e4 {[%clk 0:02:55]}  d5 {[%clk 0:02:50]} 7. e5 {[%clk 0:02:55]}  Be7 {[%clk 0:02:51]} 8. c4 {[%clk 0:02:55]}  c6 {[%clk 0:02:46]} 9. Bd3 {[%clk 0:02:53]}  b6 {[%clk 0:02:39]} 10. Qc2 {[%clk 0:02:51]}  Ba6 {[%clk 0:02:34]} 11. cxd5 {[%clk 0:02:42]}  Bxd3 {[%clk 0:02:33]} 12. Qxd3 {[%clk 0:02:43]}  Qxd5 {[%clk 0:02:26]} 13. O-O {[%clk 0:02:43]}  c5 {[%clk 0:02:25]} 14. Nc4 {[%clk 0:02:40]}  cxd4 {[%clk 0:02:16]} 15. Rac1 {[%clk 0:02:29]}  O-O {[%clk 0:02:05]} 16. Qxd4 {[%clk 0:02:25]}  Rd8 {[%clk 0:01:56]} 17. Rfd1 {[%clk 0:02:16]}  Qxd4 {[%clk 0:01:51]} 18. Nxd4 {[%clk 0:02:17]}  Kf7 {[%clk 0:01:50]} 19. g3 {[%clk 0:01:48]}  Na6 {[%clk 0:01:42]} 20. Nb5 {[%clk 0:01:45]}  Nb4 {[%clk 0:01:15]} 21. Ncd6+ {[%clk 0:01:27]}  Bxd6 {[%clk 0:01:15]} 22. Nxd6+ {[%clk 0:01:27]}  Kg6 {[%clk 0:01:03]} 23. Rc4 {[%clk 0:01:25]}  Nd5 {[%clk 0:00:59]} 24. g4 {[%clk 0:01:25]}  f4 {[%clk 0:00:57]} 25. Kg2 {[%clk 0:01:22]}  h5 {[%clk 0:00:47]} 26. gxh5+ {[%clk 0:01:20]}  Kxh5 {[%clk 0:00:46]} 27. Kf3 {[%clk 0:01:20]}  g5 {[%clk 0:00:45]} 28. Ke4 {[%clk 0:01:13]}  f3 {[%clk 0:00:37]} 29. Rxd5 {[%clk 0:01:06]}  exd5+ {[%clk 0:00:38]} 30. Kxd5 {[%clk 0:01:07]}  Kg6 {[%clk 0:00:34]} 31. e6 {[%clk 0:01:02]}  Kf6 {[%clk 0:00:33]} 32. Rc7 {[%clk 0:01:02]}  Rh8 {[%clk 0:00:20]} 33. Rf7+ {[%clk 0:01:01]}  Kg6 {[%clk 0:00:20]} 34. Rxf3 {[%clk 0:01:02]}  Rxh2 {[%clk 0:00:19]} 35. e7 {[%clk 0:01:01]}  Rhh8 {[%clk 0:00:19]} 36. Re3 {[%clk 0:00:54]}  Rh2 {[%clk 0:00:16]} 37. Re2 {[%clk 0:00:50]}  g4 {[%clk 0:00:17]} 38. e8=Q+ {[%clk 0:00:47]}  Rxe8 {[%clk 0:00:17]} 39. Nxe8 {[%clk 0:00:48]}  g3 {[%clk 0:00:15]} 40. Re6+ {[%clk 0:00:47]}  Kf7 {[%clk 0:00:15]} 41. Nd6+ {[%clk 0:00:47]}  Kf8 {[%clk 0:00:15]} 42. Ne4 {[%clk 0:00:35]}  g2 {[%clk 0:00:12]} 43. Rg6 {[%clk 0:00:34]}  Kf7 {[%clk 0:00:12]} 44. Rg3 {[%clk 0:00:33]}  Ke7 {[%clk 0:00:13]} 45. a4 {[%clk 0:00:29]}  Kd7 {[%clk 0:00:12]} 46. Rg7+ {[%clk 0:00:28]}  Ke8 {[%clk 0:00:12]} 47. b4 {[%clk 0:00:24]}  Kf8 {[%clk 0:00:12]} 48. Rg3 {[%clk 0:00:24]}  Kf7 {[%clk 0:00:13]} 49. b5 {[%clk 0:00:23]}  Kf8 {[%clk 0:00:13]} 50. Ke6 {[%clk 0:00:20]}  Rh4 {[%clk 0:00:12]} 51. Nf6 {[%clk 0:00:19]}  Rh8 {[%clk 0:00:05]} 52. Rxg2 {[%clk 0:00:19]} 1-0


[Site "https://www.chess.com"]

[Event "Titled Tuesday Blitz August 24 2021"]
[White "Avramidou, Anastasia"]
[Black "Colas, Joshua"]
[WhiteFideId "4239873"]
[BlackFideId "2044447"]
[WhiteElo "2183"]
[BlackElo "2347"]
[Result "1/2-1/2"]
[Round "02"]
[TimeControl "180+1"]
[Date "2021.08.24"]
[WhiteClock "0:00:28"]
[BlackClock "0:00:23"]

1. c4 {[%clk 0:03:00]}  c5 {[%clk 0:02:52]} 2. Nc3 {[%clk 0:03:00]}  Nc6 {[%clk 0:02:51]} 3. g3 {[%clk 0:02:57]}  g6 {[%clk 0:02:46]} 4. Bg2 {[%clk 0:02:57]}  Bg7 {[%clk 0:02:46]} 5. Nf3 {[%clk 0:02:48]}  d6 {[%clk 0:02:43]} 6. O-O {[%clk 0:02:48]}  Nh6 {[%clk 0:02:40]} 7. e3 {[%clk 0:02:44]}  e5 {[%clk 0:02:35]} 8. Rb1 {[%clk 0:02:43]}  O-O {[%clk 0:02:34]} 9. a3 {[%clk 0:02:43]}  Be6 {[%clk 0:02:34]} 10. d3 {[%clk 0:02:41]}  f5 {[%clk 0:02:30]} 11. Qc2 {[%clk 0:02:38]}  Rc8 {[%clk 0:02:22]} 12. b4 {[%clk 0:02:37]}  b6 {[%clk 0:02:15]} 13. Rd1 {[%clk 0:02:31]}  Nf7 {[%clk 0:02:08]} 14. b5 {[%clk 0:02:27]}  Ne7 {[%clk 0:02:06]} 15. a4 {[%clk 0:02:24]}  d5 {[%clk 0:02:02]} 16. cxd5 {[%clk 0:02:24]}  Nxd5 {[%clk 0:01:44]} 17. Nxd5 {[%clk 0:02:23]}  Bxd5 {[%clk 0:01:45]} 18. Bb2 {[%clk 0:02:23]}  Qe7 {[%clk 0:01:43]} 19. Ba1 {[%clk 0:02:14]}  Qe6 {[%clk 0:01:36]} 20. e4 {[%clk 0:02:07]}  Ba8 {[%clk 0:01:27]} 21. exf5 {[%clk 0:02:01]}  gxf5 {[%clk 0:01:21]} 22. Re1 {[%clk 0:02:00]}  e4 {[%clk 0:01:19]} 23. Bxg7 {[%clk 0:01:58]}  Kxg7 {[%clk 0:01:18]} 24. Qb2+ {[%clk 0:01:58]}  Qf6 {[%clk 0:01:17]} 25. dxe4 {[%clk 0:01:48]}  Bxe4 {[%clk 0:01:12]} 26. Qxf6+ {[%clk 0:01:48]}  Kxf6 {[%clk 0:01:13]} 27. Rbc1 {[%clk 0:01:48]}  Bxf3 {[%clk 0:01:07]} 28. Bxf3 {[%clk 0:01:48]}  Ne5 {[%clk 0:01:07]} 29. Be2 {[%clk 0:01:48]}  Rfd8 {[%clk 0:01:01]} 30. Rc3 {[%clk 0:01:40]}  Rd4 {[%clk 0:00:58]} 31. Ra1 {[%clk 0:01:38]}  Rd2 {[%clk 0:00:49]} 32. Bf1 {[%clk 0:01:37]}  Rcd8 {[%clk 0:00:46]} 33. a5 {[%clk 0:01:37]}  Rd1 {[%clk 0:00:46]} 34. Rca3 {[%clk 0:01:36]}  Rxa1 {[%clk 0:00:43]} 35. Rxa1 {[%clk 0:01:36]}  c4 {[%clk 0:00:35]} 36. f4 {[%clk 0:01:30]}  Nd3 {[%clk 0:00:32]} 37. axb6 {[%clk 0:01:28]}  axb6 {[%clk 0:00:33]} 38. Rd1 {[%clk 0:01:16]}  Ke6 {[%clk 0:00:27]} 39. h3 {[%clk 0:00:36]}  h5 {[%clk 0:00:25]} 40. Be2 {[%clk 0:00:34]}  h4 {[%clk 0:00:25]} 41. gxh4 {[%clk 0:00:33]}  Rd5 {[%clk 0:00:25]} 42. Bxd3 {[%clk 0:00:30]}  cxd3 {[%clk 0:00:24]} 43. Kf2 {[%clk 0:00:30]}  Rd4 {[%clk 0:00:21]} 44. Ke3 {[%clk 0:00:29]}  Re4+ {[%clk 0:00:21]} 45. Kf3 {[%clk 0:00:29]}  Rd4 {[%clk 0:00:22]} 46. Ke3 {[%clk 0:00:30]}  Re4+ {[%clk 0:00:22]} 47. Kf3 {[%clk 0:00:30]}  Rd4 {[%clk 0:00:23]} 48. Ke3 {[%clk 0:00:28]} 1/2-1/2


[Site "https://www.chess.com"]

[Event "Titled Tuesday Blitz August 24 2021"]
[White "Bai, Adelard"]
[Black "Urazayev, Arystanbek"]
[WhiteFideId "16301188"]
[BlackFideId "13709810"]
[WhiteElo "2550"]
[BlackElo "2829"]
[Result "1-0"]
[Round "02"]
[TimeControl "180+1"]
[Date "2021.08.24"]
[WhiteClock "0:00:22"]
[BlackClock "0:00:12"]

1. d4 {[%clk 0:03:00]}  d5 {[%clk 0:03:00]} 2. Nf3 {[%clk 0:02:52]}  Nf6 {[%clk 0:02:59]} 3. Bf4 {[%clk 0:02:46]}  e6 {[%clk 0:02:59]} 4. e3 {[%clk 0:02:40]}  c5 {[%clk 0:02:59]} 5. Nbd2 {[%clk 0:02:28]}  Nc6 {[%clk 0:02:59]} 6. c3 {[%clk 0:01:59]}  Nh5 {[%clk 0:02:59]} 7. Be5 {[%clk 0:01:45]}  f6 {[%clk 0:02:58]} 8. Bg3 {[%clk 0:01:45]}  g6 {[%clk 0:02:58]} 9. Bd3 {[%clk 0:01:42]}  cxd4 {[%clk 0:02:58]} 10. exd4 {[%clk 0:01:40]}  Bh6 {[%clk 0:02:58]} 11. Qe2 {[%clk 0:01:37]}  O-O {[%clk 0:02:55]} 12. O-O {[%clk 0:01:36]}  Nxg3 {[%clk 0:02:52]} 13. hxg3 {[%clk 0:01:37]}  Qd6 {[%clk 0:02:53]} 14. Rfe1 {[%clk 0:01:35]}  Bd7 {[%clk 0:02:53]} 15. Nf1 {[%clk 0:01:26]}  Rae8 {[%clk 0:02:53]} 16. Rad1 {[%clk 0:01:19]}  Kg7 {[%clk 0:02:49]} 17. N1h2 {[%clk 0:01:18]}  e5 {[%clk 0:02:46]} 18. dxe5 {[%clk 0:01:17]}  fxe5 {[%clk 0:02:47]} 19. Bb5 {[%clk 0:01:05]}  e4 {[%clk 0:02:39]} 20. Nd4 {[%clk 0:01:02]}  Ne5 {[%clk 0:02:20]} 21. Bxd7 {[%clk 0:01:00]}  Qxd7 {[%clk 0:02:21]} 22. Qb5 {[%clk 0:00:44]}  Qxb5 {[%clk 0:02:19]} 23. Nxb5 {[%clk 0:00:45]}  Nd3 {[%clk 0:02:19]} 24. Re2 {[%clk 0:00:45]}  Bg5 {[%clk 0:01:34]} 25. Nc7 {[%clk 0:00:39]}  Re5 {[%clk 0:00:57]} 26. Rxd3 {[%clk 0:00:22]}  exd3 {[%clk 0:00:40]} 27. Rxe5 {[%clk 0:00:23]}  Rd8 {[%clk 0:00:16]} 28. Ne6+ {[%clk 0:00:21]}  Kf6 {[%clk 0:00:16]} 29. Ng4+ {[%clk 0:00:22]}  Ke7 {[%clk 0:00:11]} 30. Nxd8+ {[%clk 0:00:22]}  Kd6 {[%clk 0:00:11]} 31. Nf7+ {[%clk 0:00:22]}  Kc5 {[%clk 0:00:11]} 32. Nxg5 {[%clk 0:00:21]}  d2 {[%clk 0:00:12]} 33. Ne3 {[%clk 0:00:22]} 1-0


[Site "https://www.chess.com"]

[Event "Titled Tuesday Blitz August 24 2021"]
[White "Biletskiy, Danylo"]
[Black "Darini, Pouria"]
[WhiteFideId "14155419"]
[BlackFideId "12502200"]
[WhiteElo "2099"]
[BlackElo "2489"]
[Result "0-1"]
[Round "02"]
[TimeControl "180+1"]
[Date "2021.08.24"]
[WhiteClock "0:00:17"]
[BlackClock "0:00:49"]

1. e4 {[%clk 0:03:00]}  c5 {[%clk 0:02:59]} 2. Nf3 {[%clk 0:02:58]}  d6 {[%clk 0:02:58]} 3. d4 {[%clk 0:02:58]}  cxd4 {[%clk 0:02:56]} 4. Nxd4 {[%clk 0:02:59]}  Nf6 {[%clk 0:02:57]} 5. Nc3 {[%clk 0:02:59]}  a6 {[%clk 0:02:57]} 6. Bg5 {[%clk 0:02:47]}  Nbd7 {[%clk 0:02:56]} 7. Bc4 {[%clk 0:02:46]}  Qa5 {[%clk 0:02:54]} 8. Qd2 {[%clk 0:02:45]}  e6 {[%clk 0:02:55]} 9. f3 {[%clk 0:02:43]}  b5 {[%clk 0:02:54]} 10. Bb3 {[%clk 0:02:40]}  Bb7 {[%clk 0:02:53]} 11. g4 {[%clk 0:02:37]}  b4 {[%clk 0:02:35]} 12. Nce2 {[%clk 0:02:30]}  d5 {[%clk 0:02:35]} 13. exd5 {[%clk 0:02:02]}  Nxd5 {[%clk 0:02:33]} 14. O-O-O {[%clk 0:01:59]}  Nc5 {[%clk 0:02:29]} 15. Kb1 {[%clk 0:01:57]}  Nxb3 {[%clk 0:01:55]} 16. Nxb3 {[%clk 0:01:41]}  Qc7 {[%clk 0:01:46]} 17. Nf4 {[%clk 0:01:40]}  Bd6 {[%clk 0:01:36]} 18. Nh5 {[%clk 0:01:15]}  f6 {[%clk 0:01:17]} 19. Bh4 {[%clk 0:01:13]}  O-O {[%clk 0:01:12]} 20. Rhe1 {[%clk 0:01:07]}  Rae8 {[%clk 0:01:11]} 21. Bg3 {[%clk 0:01:06]}  e5 {[%clk 0:01:02]} 22. Bf2 {[%clk 0:00:55]}  a5 {[%clk 0:01:01]} 23. Ng3 {[%clk 0:00:44]}  a4 {[%clk 0:01:01]} 24. Nc1 {[%clk 0:00:44]}  a3 {[%clk 0:01:01]} 25. Ne4 {[%clk 0:00:22]}  axb2 {[%clk 0:00:59]} 26. Kxb2 {[%clk 0:00:23]}  Ra8 {[%clk 0:00:50]} 27. Nxd6 {[%clk 0:00:20]}  Qxd6 {[%clk 0:00:50]} 28. Nb3 {[%clk 0:00:18]}  Qa6 {[%clk 0:00:48]} 29. Ra1 {[%clk 0:00:18]}  Qa3+ {[%clk 0:00:48]} 30. Kb1 {[%clk 0:00:17]}  Nc3+ {[%clk 0:00:49]} 0-1


[Site "https://www.chess.com"]

[Event "Titled Tuesday Blitz August 24 2021"]
[White "Delorme, Alban"]
[Black "Mikhailovsky, Vladimir"]
[WhiteFideId "623636"]
[BlackFideId "34105414"]
[WhiteElo "2197"]
[BlackElo "2315"]
[Result "1-0"]
[Round "02"]
[TimeControl "180+1"]
[Date "2021.08.24"]
[WhiteClock "0:00:22"]
[BlackClock "0:00:03"]

1. d4 {[%clk 0:03:00]}  Nf6 {[%clk 0:02:58]} 2. Nc3 {[%clk 0:02:59]}  d5 {[%clk 0:02:57]} 3. Bg5 {[%clk 0:02:57]}  c6 {[%clk 0:02:44]} 4. Qd3 {[%clk 0:02:49]}  Nbd7 {[%clk 0:02:39]} 5. e4 {[%clk 0:02:44]}  dxe4 {[%clk 0:02:39]} 6. Nxe4 {[%clk 0:02:45]}  Nxe4 {[%clk 0:02:38]} 7. Qxe4 {[%clk 0:02:45]}  g6 {[%clk 0:02:20]} 8. Bd3 {[%clk 0:02:33]}  Bg7 {[%clk 0:02:17]} 9. Nf3 {[%clk 0:02:32]}  Nf6 {[%clk 0:02:11]} 10. Qe2 {[%clk 0:02:32]}  O-O {[%clk 0:01:49]} 11. O-O-O {[%clk 0:02:23]}  Qa5 {[%clk 0:01:42]} 12. Kb1 {[%clk 0:02:22]}  Be6 {[%clk 0:01:41]} 13. c4 {[%clk 0:02:16]}  b5 {[%clk 0:01:40]} 14. Ne5 {[%clk 0:02:15]}  bxc4 {[%clk 0:01:40]} 15. Bxc4 {[%clk 0:02:11]}  Bd5 {[%clk 0:01:21]} 16. f3 {[%clk 0:02:07]}  Rab8 {[%clk 0:01:13]} 17. Ka1 {[%clk 0:01:57]}  Rb6 {[%clk 0:01:04]} 18. Rc1 {[%clk 0:01:51]}  Rfb8 {[%clk 0:00:46]} 19. Rc2 {[%clk 0:01:46]}  Qa4 {[%clk 0:00:41]} 20. Rb1 {[%clk 0:01:34]}  Rb4 {[%clk 0:00:26]} 21. b3 {[%clk 0:01:27]}  Qa3 {[%clk 0:00:20]} 22. Bxd5 {[%clk 0:01:13]}  Nxd5 {[%clk 0:00:16]} 23. Bc1 {[%clk 0:01:14]}  Qa5 {[%clk 0:00:05]} 24. Nxc6 {[%clk 0:01:14]}  Qb6 {[%clk 0:00:03]} 25. Bb2 {[%clk 0:01:12]}  a5 {[%clk 0:00:01]} 26. Rbc1 {[%clk 0:01:03]}  a4 {[%clk 0:00:01]} 27. Nxb8 {[%clk 0:01:00]}  Bxd4 {[%clk 0:00:01]} 28. Rc8+ {[%clk 0:00:54]}  Kg7 {[%clk 0:00:01]} 29. Bxd4+ {[%clk 0:00:44]}  Qxd4+ {[%clk 0:00:02]} 30. Qb2 {[%clk 0:00:44]}  axb3 {[%clk 0:00:02]} 31. Qxd4+ {[%clk 0:00:35]}  Rxd4 {[%clk 0:00:03]} 32. axb3 {[%clk 0:00:35]}  Rd2 {[%clk 0:00:03]} 33. R8c2 {[%clk 0:00:32]}  Rd3 {[%clk 0:00:04]} 34. Kb2 {[%clk 0:00:31]}  Nb4 {[%clk 0:00:04]} 35. Re2 {[%clk 0:00:25]}  e5 {[%clk 0:00:03]} 36. Nc6 {[%clk 0:00:23]}  Nd5 {[%clk 0:00:02]} 37. Nxe5 {[%clk 0:00:22]}  Rd4 {[%clk 0:00:02]} 38. Nc4 {[%clk 0:00:21]}  Nf4 {[%clk 0:00:02]} 39. Rd2 {[%clk 0:00:22]}  Nd3+ {[%clk 0:00:02]} 40. Kc3 {[%clk 0:00:21]}  Nxc1 {[%clk 0:00:02]} 41. Rxd4 {[%clk 0:00:20]}  Ne2+ {[%clk 0:00:03]} 42. Kd3 {[%clk 0:00:21]}  Nxd4 {[%clk 0:00:03]} 43. Kxd4 {[%clk 0:00:22]} 1-0


[Site "https://www.chess.com"]

[Event "Titled Tuesday Blitz August 24 2021"]
[White "Wagner, Dinara"]
[Black "Yanchenko, Roman"]
[WhiteFideId "24157570"]
[BlackFideId "4137329"]
[WhiteElo "2260"]
[BlackElo "2514"]
[Result "0-1"]
[Round "02"]
[TimeControl "180+1"]
[Date "2021.08.24"]
[WhiteClock "0:00:13"]
[BlackClock "0:00:49"]

1. d4 {[%clk 0:02:56]}  d5 {[%clk 0:02:54]} 2. c4 {[%clk 0:02:54]}  c6 {[%clk 0:02:53]} 3. Nf3 {[%clk 0:02:54]}  Nf6 {[%clk 0:02:53]} 4. g3 {[%clk 0:02:54]}  Bf5 {[%clk 0:02:53]} 5. Nc3 {[%clk 0:02:54]}  e6 {[%clk 0:02:53]} 6. Nh4 {[%clk 0:02:54]}  Be4 {[%clk 0:02:52]} 7. f3 {[%clk 0:02:54]}  Bg6 {[%clk 0:02:53]} 8. Qb3 {[%clk 0:02:54]}  Qb6 {[%clk 0:02:52]} 9. c5 {[%clk 0:02:52]}  Qc7 {[%clk 0:02:43]} 10. Bf4 {[%clk 0:02:50]}  Qc8 {[%clk 0:02:44]} 11. O-O-O {[%clk 0:02:29]}  Nbd7 {[%clk 0:02:43]} 12. e4 {[%clk 0:02:21]}  dxe4 {[%clk 0:02:18]} 13. Nxg6 {[%clk 0:02:20]}  hxg6 {[%clk 0:02:18]} 14. fxe4 {[%clk 0:02:21]}  b6 {[%clk 0:02:18]} 15. cxb6 {[%clk 0:02:12]}  axb6 {[%clk 0:02:18]} 16. Bc4 {[%clk 0:02:12]}  Be7 {[%clk 0:02:14]} 17. e5 {[%clk 0:01:55]}  Nd5 {[%clk 0:02:13]} 18. Ne4 {[%clk 0:01:50]}  b5 {[%clk 0:02:07]} 19. Bxd5 {[%clk 0:01:39]}  cxd5+ {[%clk 0:02:06]} 20. Nc5 {[%clk 0:01:28]}  Nxc5 {[%clk 0:01:53]} 21. dxc5 {[%clk 0:01:27]}  Qxc5+ {[%clk 0:01:52]} 22. Kb1 {[%clk 0:01:27]}  Qc4 {[%clk 0:01:52]} 23. Rd3 {[%clk 0:01:18]}  O-O {[%clk 0:01:43]} 24. Rc1 {[%clk 0:01:12]}  Qe4 {[%clk 0:01:42]} 25. Ka1 {[%clk 0:01:02]}  Rfc8 {[%clk 0:01:33]} 26. Rdc3 {[%clk 0:00:46]}  Rxc3 {[%clk 0:01:04]} 27. Rxc3 {[%clk 0:00:40]}  g5 {[%clk 0:01:04]} 28. Bd2 {[%clk 0:00:38]}  Qxe5 {[%clk 0:01:03]} 29. Qxb5 {[%clk 0:00:29]}  Bf6 {[%clk 0:01:02]} 30. a4 {[%clk 0:00:19]}  Qd4 {[%clk 0:00:58]} 31. Qe2 {[%clk 0:00:13]}  Qxa4+ {[%clk 0:00:56]} 32. Kb1 {[%clk 0:00:13]}  Bxc3 {[%clk 0:00:49]} 33. Bxc3 {[%clk 0:00:14]}  d4 {[%clk 0:00:49]} 34. Qe4 {[%clk 0:00:13]} 0-1


[Site "https://www.chess.com"]

[Event "Titled Tuesday Blitz August 24 2021"]
[White "Dushyant Sharma"]
[Black "Kobalia, Mikhail"]
[WhiteFideId "25065130"]
[BlackFideId "4119150"]
[WhiteElo "2538"]
[BlackElo "2799"]
[Result "0-1"]
[Round "02"]
[TimeControl "180+1"]
[Date "2021.08.24"]
[WhiteClock "0:00:16"]
[BlackClock "0:01:35"]

1. e4 {[%clk 0:03:00]}  c6 {[%clk 0:02:59]} 2. d4 {[%clk 0:02:42]}  d5 {[%clk 0:02:58]} 3. Nc3 {[%clk 0:02:43]}  dxe4 {[%clk 0:02:57]} 4. Nxe4 {[%clk 0:02:44]}  Bf5 {[%clk 0:02:56]} 5. Ng3 {[%clk 0:02:41]}  Bg6 {[%clk 0:02:56]} 6. h4 {[%clk 0:02:40]}  h6 {[%clk 0:02:55]} 7. Nf3 {[%clk 0:02:41]}  e6 {[%clk 0:02:55]} 8. h5 {[%clk 0:02:16]}  Bh7 {[%clk 0:02:54]} 9. Bd3 {[%clk 0:02:17]}  Bxd3 {[%clk 0:02:53]} 10. Qxd3 {[%clk 0:02:18]}  Nf6 {[%clk 0:02:53]} 11. Bd2 {[%clk 0:02:18]}  Nbd7 {[%clk 0:02:51]} 12. O-O-O {[%clk 0:02:18]}  Be7 {[%clk 0:02:51]} 13. Ne4 {[%clk 0:02:18]}  Qb6 {[%clk 0:02:50]} 14. Kb1 {[%clk 0:02:06]}  Rd8 {[%clk 0:02:49]} 15. c4 {[%clk 0:01:54]}  O-O {[%clk 0:02:45]} 16. Bc3 {[%clk 0:01:49]}  c5 {[%clk 0:02:41]} 17. d5 {[%clk 0:01:39]}  Nxe4 {[%clk 0:02:35]} 18. Qxe4 {[%clk 0:01:38]}  Bf6 {[%clk 0:02:30]} 19. Ne5 {[%clk 0:01:22]}  exd5 {[%clk 0:02:23]} 20. Rxd5 {[%clk 0:01:18]}  Nxe5 {[%clk 0:02:20]} 21. Bxe5 {[%clk 0:01:15]}  Bxe5 {[%clk 0:02:06]} 22. Qxe5 {[%clk 0:01:13]}  Rde8 {[%clk 0:02:04]} 23. Qc3 {[%clk 0:01:01]}  Re2 {[%clk 0:02:03]} 24. Rd2 {[%clk 0:01:01]}  Rxd2 {[%clk 0:02:01]} 25. Qxd2 {[%clk 0:01:01]}  Rd8 {[%clk 0:02:02]} 26. Qe2 {[%clk 0:00:58]}  Qf6 {[%clk 0:01:57]} 27. a3 {[%clk 0:00:55]}  Qf5+ {[%clk 0:01:52]} 28. Ka2 {[%clk 0:00:54]}  a6 {[%clk 0:01:51]} 29. g4 {[%clk 0:00:53]}  Qf4 {[%clk 0:01:48]} 30. f3 {[%clk 0:00:37]}  Rd2 {[%clk 0:01:44]} 31. Qe8+ {[%clk 0:00:22]}  Kh7 {[%clk 0:01:43]} 32. Rc1 {[%clk 0:00:15]}  Qxf3 {[%clk 0:01:38]} 33. Rc3 {[%clk 0:00:16]}  Qxc3 {[%clk 0:01:35]} 34. Qe4+ {[%clk 0:00:16]}  g6 {[%clk 0:01:35]} 35. hxg6+ {[%clk 0:00:16]}  fxg6 {[%clk 0:01:35]} 0-1


[Site "https://www.chess.com"]